fUSD/lending_fUSD_20250225
["ID","MTS","AMOUNT","RATE_DAILY","PERIOD"]
[354370537,1740455447187,-328.12,0.00030047,30]
[354370538,1740455447196,-1500.0,0.00030055,7]
[354370539,1740455447205,-1060.0,0.00030137,5]
[354370540,1740455447215,-280.61,0.00030137,2]
[354370541,1740455447226,-2771.36782684,0.00030187,3]
[354370542,1740455447236,-1500.0,0.0003026,14]
[354370543,1740455447245,-150.0,0.00030336,120]
[354370544,1740455447255,-1500.0,0.00030464,14]
[354370545,1740455447265,-177.79312,0.000306,120]
[354370546,1740455447275,-308.47721,0.000306,120]
[354370547,1740455447284,-150.0,0.00030601,120]
[354370548,1740455447293,-158.0,0.00030613,30]
[354370549,1740455447303,-164.163453,0.00030668,7]
[354370550,1740455447313,-164.163453,0.00030668,7]
[354370551,1740455447322,-2563.768751,0.00030668,7]
[354370552,1740455447332,-1500.0,0.00030669,14]
[354370553,1740455447341,-152.0,0.0003071,3]
[354370554,1740455447351,-1500.0,0.00030873,14]
[354370555,1740455447360,-1612.6917083,0.00030979,2]
[354370556,1740455447370,-100000.0,0.00031,32]
[354370557,1740455447379,-35520.0,0.00031,2]
[354370558,1740455447389,-151.0,0.00031,7]
[354370559,1740455447398,-151.0,0.00031,7]
[354370560,1740455447407,-151.0,0.00031,7]
[354370561,1740455447417,-151.0,0.00031,7]
[354370562,1740455447426,-800.0,0.00031,2]
[354370563,1740455447435,-151.0,0.00031,7]
[354370564,1740455447444,-151.0,0.00031,7]
[354370565,1740455447453,-151.0,0.00031,7]
[354370566,1740455447462,-151.0,0.00031,7]
[354370567,1740455447472,-274.838219,0.00031,7]
[354370568,1740455447482,-274.838219,0.00031,7]
[354370569,1740455447491,-5724.96,0.00031,7]
[354370570,1740455447501,-205.91,0.00031074,2]
[354370571,1740455447510,-1500.0,0.00031077,14]
[354370572,1740455447519,-8170.1,0.000311,7]
[354370573,1740455447528,-177.79312,0.000312,120]
[354370574,1740455447538,-308.47721,0.000312,120]
[354370575,1740455447547,-1500.0,0.00031282,14]
[354370576,1740455447556,-1138.73045131,0.00031323,3]
[354370577,1740455447565,-8956.1096202,0.0003143,4]
[354370578,1740455447575,-151.0,0.0003143,7]
[354370579,1740455447585,-1500.0,0.00031486,14]
[354370580,1740455447596,-150.0,0.00031632,120]
[354370581,1740455447606,-163.39501262,0.00031645,2]
[354370582,1740455447615,-1500.0,0.00031691,14]
[354370583,1740455447626,-25639.48848709,0.00031698,61]
[354370584,1740455447635,-151.0,0.00031698,7]
[354370585,1740455447644,-151.0,0.00031698,7]
[354370586,1740455447654,-325.02295,0.00031698,7]
[354370587,1740455447665,-325.02295,0.00031698,7]
[354370588,1740455447674,-151.0,0.00031698,7]
[354370589,1740455447684,-251.668664,0.00031698,7]
[354370590,1740455447693,-226.537563,0.00031698,7]
[354370591,1740455447703,-151.0,0.00031698,7]
[354370592,1740455447713,-151.0,0.00031698,7]
[354370593,1740455447723,-164.163453,0.00031698,7]
[354370594,1740455447733,-164.163453,0.00031698,7]
[354370595,1740455447743,-2563.768751,0.00031698,7]
[354370596,1740455447753,-2563.768751,0.00031698,7]
[354370597,1740455447763,-1060.0,0.00031723,5]
[354370598,1740455447772,-150.0,0.00031731,120]
[354370599,1740455447782,-237.36329595,0.00031781,7]
[354370600,1740455447791,-26600.0,0.00031781,7]
[354370601,1740455447800,-3471.69654111,0.00031781,7]
[354370602,1740455447810,-150.47,0.00031781,2]
[354370603,1740455447819,-289.54,0.00031781,2]
[354370604,1740455447829,-150.6,0.00031781,2]
[354370605,1740455447838,-249.7,0.00031781,2]
[354370606,1740455447847,-150.0,0.00031781,2]
[354370607,1740455447857,-3608.41616646,0.00031789,2]
[354370608,1740455447867,-177.7932,0.000318,120]
[354370609,1740455447876,-308.47725,0.000318,120]
[354370610,1740455447886,-1500.0,0.00031895,14]
[354370611,1740455447896,-206.0,0.000319,2]
[354370612,1740455447905,-3579.82032752,0.00031928,30]
[354370613,1740455447915,-150.0,0.00031956,120]
[354370614,1740455447925,-100000.0,0.00032,34]
[354370615,1740455447934,-879.33,0.00032,6]
[354370616,1740455447944,-1055.7098212,0.00032,33]
[354370617,1740455447953,-151.0,0.00032,7]
[354370618,1740455447962,-151.0,0.00032,7]
[354370619,1740455447972,-151.0,0.00032,7]
[354370620,1740455447981,-297.649471,0.00032,7]
[354370621,1740455447991,-151.0,0.00032,7]
[354370622,1740455448001,-151.0,0.00032,7]
[354370623,1740455448011,-151.0,0.00032,7]
[354370624,1740455448021,-151.0,0.00032,7]
[354370625,1740455448034,-274.838219,0.00032,7]
[354370626,1740455448044,-274.838219,0.00032,7]
[354370627,1740455448053,-154.83,0.0003208,2]
[354370628,1740455448063,-444.04,0.00032094,2]
[354370629,1740455448072,-1500.0,0.000321,14]
[354370630,1740455448082,-205.91,0.00032225,2]
[354370631,1740455448094,-159.83845078,0.00032256,2]
[354370632,1740455448104,-5724.96,0.000323,7]
[354370633,1740455448115,-1500.0,0.00032304,14]
[354370634,1740455448125,-151.0,0.00032493,120]
[354370635,1740455448135,-5724.96,0.000325,7]
[354370636,1740455448283,-1500.0,0.00032509,14]
[354370637,1740455448294,-152.0,0.00032588,4]
[354370638,1740455448304,-8170.1,0.000326,7]
[354370639,1740455448313,-151.0,0.000326,7]
[354370640,1740455448323,-150.0,0.00032603,2]
[354370641,1740455448334,-150.0,0.00032603,2]
[354370642,1740455448344,-235.13,0.00032603,2]
[354370643,1740455448353,-150.0,0.00032603,2]
[354370644,1740455448363,-150.0,0.00032603,2]
[354370645,1740455448373,-150.0,0.00032603,2]
[354370646,1740455448383,-150.0,0.00032603,2]
[354370647,1740455448392,-150.0,0.00032603,2]
[354370648,1740455448402,-150.0,0.00032603,2]
[354370649,1740455448411,-150.0,0.00032603,2]
[354370650,1740455448422,-626.34,0.00032603,2]
[354370651,1740455448432,-439.43,0.00032603,2]
[354370652,1740455448441,-150.0,0.00032603,2]
[354370653,1740455448451,-150.0,0.00032603,2]
[354370654,1740455448461,-439.43,0.00032603,2]
[354370655,1740455448472,-150.0,0.00032603,2]
[354370656,1740455448482,-150.0,0.00032603,2]
[354370657,1740455448493,-216.71,0.00032603,2]
[354370658,1740455448503,-188.95,0.00032603,2]
[354370659,1740455448512,-150.0,0.00032603,2]
[354370660,1740455448522,-151.36,0.00032603,2]
[354370661,1740455448532,-150.0,0.00032603,2]
[354370662,1740455448541,-328.12,0.00032631,120]
[354370663,1740455448551,-1500.0,0.00032713,14]
[354370664,1740455448560,-16114.64347849,0.00032777,7]
[354370665,1740455448569,-206.0,0.000328,2]
[354370666,1740455448579,-684.3891048,0.00032877,2]
[354370667,1740455448591,-926982.1654272,0.000329,7]
[354370668,1740455448600,-1500.0,0.00032918,14]
[354370669,1740455448610,-776.6044492,0.00032977,2]
[354370670,1740455448620,-2171.7857788,0.00032977,2]
[354370671,1740455448630,-2932.8075732,0.00032977,2]
[354370672,1740455448640,-1130.8783558,0.00032977,2]
[354370673,1740455448649,-493.845746,0.00032977,2]
[354370674,1740455448659,-724.2640997,0.00032977,2]
[354370675,1740455448670,-280.3037213,0.00032977,2]
[354370676,1740455448680,-1365.95186964,0.00032998,14]
[354370677,1740455448690,-100000.0,0.00033,36]
[354370678,1740455448700,-900.0,0.00033,34]
[354370679,1740455448709,-515.526369,0.00033,14]
[354370680,1740455448720,-151.0,0.00033,7]
[354370681,1740455448730,-151.0,0.00033,7]
[354370682,1740455448740,-325.02295,0.00033,7]
[354370683,1740455448749,-325.02295,0.00033,7]
[354370684,1740455448759,-151.0,0.00033,7]
[354370685,1740455448768,-151.0,0.00033,7]
[354370686,1740455448777,-151.0,0.00033,7]
[354370687,1740455448787,-850.0,0.00033,2]
[354370688,1740455448796,-164.163453,0.00033,7]
[354370689,1740455448805,-164.163453,0.00033,7]
[354370690,1740455448814,-2563.768751,0.00033,7]
[354370691,1740455448824,-2563.768751,0.00033,7]
[354370692,1740455448834,-325.02295,0.000331,7]
[354370693,1740455448843,-325.02295,0.000331,7]
[354370694,1740455448852,-151.0,0.000331,7]
[354370695,1740455448861,-178.374225,0.000331,7]
[354370696,1740455448870,-164.163453,0.000331,7]
[354370697,1740455448880,-164.163453,0.000331,7]
[354370698,1740455448889,-2563.768751,0.000331,7]
[354370699,1740455448899,-2563.768751,0.000331,7]
[354370700,1740455448908,-151.0,0.000331,7]
[354370701,1740455448917,-500.0,0.00033106,120]
[354370702,1740455448926,-545.7062663,0.00033253,2]
[354370703,1740455448936,-280.3037213,0.00033253,2]
[354370704,1740455448945,-3608.41616646,0.00033276,2]
[354370705,1740455448954,-151.0,0.000333,7]
[354370706,1740455448964,-151.0,0.000333,7]
[354370707,1740455448974,-288.822972,0.000333,7]
[354370708,1740455448982,-151.0,0.000333,7]
[354370709,1740455448991,-151.0,0.000333,7]
[354370710,1740455449001,-151.0,0.000333,7]
[354370711,1740455449010,-240.259933,0.000333,7]
[354370712,1740455449019,-20044.96084803,0.0003333,20]
[354370713,1740455449028,-205.91,0.00033376,2]
[354370714,1740455449037,-1060.0,0.00033392,5]
[354370715,1740455449047,-987.57,0.00033425,2]
[354370716,1740455449056,-987.57,0.00033425,2]
[354370717,1740455449065,-235.67,0.00033425,2]
[354370718,1740455449074,-515.6619294,0.00033454,2]
[354370719,1740455449083,-585.1427877,0.00033477,2]
[354370720,1740455449093,-1636.3604229,0.00033477,2]
[354370721,1740455449102,-2209.7622553,0.00033477,2]
[354370722,1740455449112,-852.0750999,0.00033477,2]
[354370723,1740455449122,-493.845746,0.00033477,2]
[354370724,1740455449132,-1215.1036771,0.00033477,2]
[354370725,1740455449141,-1359.06193725,0.0003349,2]
[354370726,1740455449150,-1000000.0,0.000335,21]
[354370727,1740455449159,-151.471097,0.000335,7]
[354370728,1740455449169,-325.02295,0.000335,7]
[354370729,1740455449178,-325.02295,0.000335,7]
[354370730,1740455449187,-151.0,0.000335,7]
[354370731,1740455449197,-153.515444,0.000335,7]
[354370732,1740455449206,-151.0,0.000335,7]
[354370733,1740455449215,-151.0,0.000335,7]
[354370734,1740455449226,-151.0,0.000335,7]
[354370735,1740455449236,-242.634749,0.000335,7]
[354370736,1740455449246,-164.163453,0.000335,7]
[354370737,1740455449256,-164.163446,0.000335,7]
[354370738,1740455449266,-2563.768751,0.000335,7]
[354370739,1740455449276,-2563.768743,0.000335,7]
[354370740,1740455449286,-151.0,0.000335,7]
[354370741,1740455449296,-274.838219,0.000335,7]
[354370742,1740455449305,-274.838219,0.000335,7]
[354370743,1740455449315,-170.78,0.000335,31]
[354370744,1740455449325,-150.0,0.0003357,10]
[354370745,1740455449336,-209.0,0.0003359,2]
[354370746,1740455449346,-367.1484328,0.00033677,2]
[354370747,1740455449356,-280.3037213,0.00033677,2]
[354370748,1740455449366,-346.9347539,0.00033677,2]
[354370749,1740455449376,-206.0,0.000337,2]
[354370750,1740455449386,-2000.0,0.000337,2]
[354370751,1740455449396,-2000.0,0.000337,2]
[354370752,1740455449407,-2000.0,0.000337,2]
[354370753,1740455449416,-2000.0,0.000337,2]
[354370754,1740455449427,-2000.0,0.000337,2]
[354370755,1740455449436,-2000.0,0.000337,2]
[354370756,1740455449446,-2000.0,0.000337,2]
[354370757,1740455449455,-2000.0,0.000337,2]
[354370758,1740455449465,-2000.0,0.000337,2]
[354370759,1740455449475,-2000.0,0.000337,2]
[354370760,1740455449485,-200.0,0.00033723,2]
[354370761,1740455449495,-200.0,0.00033723,2]
[354370762,1740455449505,-200.0,0.00033723,2]
[354370763,1740455449514,-200.0,0.00033723,2]
[354370764,1740455449524,-200.0,0.00033723,2]
[354370765,1740455449533,-200.0,0.00033723,2]
[354370766,1740455449542,-200.0,0.00033723,2]
[354370767,1740455449551,-200.0,0.00033723,2]
[354370768,1740455449560,-200.0,0.00033723,2]
[354370769,1740455449569,-213.0,0.00033723,2]
[354370770,1740455449579,-200.0,0.00033723,2]
[354370771,1740455449590,-200.0,0.00033723,2]
[354370772,1740455449599,-200.0,0.00033723,2]
[354370773,1740455449608,-201.0,0.00033723,2]
[354370774,1740455449617,-200.0,0.00033723,2]
[354370775,1740455449627,-200.0,0.00033723,2]
[354370776,1740455449637,-200.0,0.00033723,2]
[354370777,1740455449646,-200.0,0.00033723,2]
[354370778,1740455449655,-200.0,0.00033723,2]
[354370779,1740455449664,-200.0,0.00033723,2]
[354370780,1740455449673,-200.0,0.00033723,2]
[354370781,1740455449682,-200.0,0.00033723,2]
[354370782,1740455449692,-200.0,0.00033723,2]
[354370783,1740455449701,-200.0,0.00033723,2]
[354370784,1740455449711,-200.0,0.00033723,2]
[354370785,1740455449721,-279.17095173,0.00033828,30]
[354370786,1740455449730,-293.61772735,0.00033828,30]
[354370787,1740455449739,-150.0,0.00033828,30]
[354370788,1740455449748,-2237.14743597,0.00033828,30]
[354370789,1740455449758,-3560.96,0.00033844,2]
[354370790,1740455449767,-2002.25,0.000339,30]
[354370791,1740455449776,-1279.56389453,0.00033967,2]
[354370792,1740455449786,-393.6811262,0.00033976,2]
[354370793,1740455449795,-1100.9350669,0.00033976,2]
[354370794,1740455449804,-1486.7169374,0.00033976,2]
[354370795,1740455449813,-573.271844,0.00033976,2]
[354370796,1740455449823,-493.845746,0.00033976,2]
[354370797,1740455449831,-100000.0,0.00034,38]
[354370798,1740455449840,-900.0,0.00034,35]
[354370799,1740455449850,-346.66483135,0.00034,120]
[354370800,1740455449859,-150.0,0.00034071,120]
[354370801,1740455449869,-170.78,0.000343,31]
[354370802,1740455449878,-170.78,0.000343,31]
[354370803,1740455449888,-444.04,0.00034358,2]
[354370804,1740455449898,-169.61,0.00034411,2]
[354370805,1740455449907,-152.0,0.00034465,5]
[354370806,1740455449917,-209.0,0.0003449,2]
[354370807,1740455449926,-205.92,0.00034527,2]
[354370808,1740455449935,-150.0,0.00034548,10]
[354370809,1740455450054,-206.0,0.000346,2]
[354370810,1740455450075,-150.0,0.00034618,7]
[354370811,1740455450085,-500.0,0.0003462,120]
[354370812,1740455450095,-7828.90770172,0.000348,120]
[354370813,1740455450107,-1000.0,0.000348,50]
[354370814,1740455450126,-150.0,0.00034825,120]
[354370815,1740455450135,-321.14404674,0.00034897,2]
[354370816,1740455450144,-1000.0,0.000349,13]
[354370817,1740455450154,-1000.0,0.000349,13]
[354370818,1740455450163,-1000.0,0.000349,13]
[354370819,1740455450172,-1000.0,0.000349,13]
[354370820,1740455450182,-1000.0,0.000349,13]
[354370821,1740455450191,-1000.0,0.000349,13]
[354370822,1740455450201,-1000.0,0.000349,13]
[354370823,1740455450211,-1000.0,0.000349,13]
[354370824,1740455450221,-1000.0,0.000349,13]
[354370825,1740455450231,-1000.0,0.000349,13]
[354370826,1740455450240,-817.5156459,0.00034976,2]
[354370827,1740455450250,-151.0,0.00034986,120]
[354370828,1740455450260,-1559.10301,0.00034999,2]
[354370829,1740455450269,-100000.0,0.00035,40]
[354370830,1740455450279,-462576.0,0.00035,120]
[354370831,1740455450289,-366.96910575,0.00035,120]
[354370832,1740455450299,-22215.85962345,0.00035,14]
[354370833,1740455450308,-200000.0,0.00035,40]
[354370834,1740455450317,-325.02295,0.00035,7]
[354370835,1740455450327,-325.02295,0.00035,7]
[354370836,1740455450336,-325.02295,0.00035,7]
[354370837,1740455450345,-325.02295,0.00035,7]
[354370838,1740455450355,-151.0,0.00035,7]
[354370839,1740455450365,-151.0,0.00035,7]
[354370840,1740455450374,-151.0,0.00035,7]
[354370841,1740455450383,-151.0,0.00035,7]
[354370842,1740455450393,-151.0,0.00035,7]
[354370843,1740455450403,-151.0,0.00035,7]
[354370844,1740455450412,-274.838219,0.00035,7]
[354370845,1740455450421,-274.838212,0.00035,7]
[354370846,1740455450430,-10000.0,0.00035,120]
[354370847,1740455450439,-150.0,0.00035036,5]
[354370848,1740455450449,-150.0,0.00035036,5]
[354370849,1740455450458,-170.78,0.000351,31]
[354370850,1740455450467,-170.78,0.000351,31]
[354370851,1740455450478,-1060.0,0.0003515,5]
[354370852,1740455450488,-440.33,0.00035205,2]
[354370853,1740455450497,-1439.8,0.00035205,2]
[354370854,1740455450506,-328.12,0.00035215,120]
[354370855,1740455450515,-200.0,0.00035261,60]
[354370856,1740455450525,-150.0,0.000353,2]
[354370857,1740455450534,-150.0,0.000353,2]
[354370858,1740455450544,-150.0,0.00035346,120]
[354370859,1740455450552,-209.0,0.000354,2]
[354370860,1740455450562,-95231.06906742,0.00035499,2]
[354370861,1740455450571,-206.0,0.000355,2]
[354370862,1740455450583,-150.0,0.00035506,120]
[354370863,1740455450594,-170.78,0.000358,31]
[354370864,1740455450604,-170.78,0.000358,31]
[354370865,1740455450613,-2000.0,0.000359,30]
[354370866,1740455450623,-159.83845078,0.00035934,2]
[354370867,1740455450632,-188.5905993,0.0003595,2]
[354370868,1740455450642,-280.3037213,0.0003595,2]
[354370869,1740455450651,-202.2194646,0.00035975,2]
[354370870,1740455450662,-565.5097109,0.00035975,2]
[354370871,1740455450671,-763.6716195,0.00035975,2]
[354370872,1740455450680,-294.4685881,0.00035975,2]
[354370873,1740455450690,-493.845746,0.00035975,2]
[354370874,1740455450700,-419.9276147,0.00035975,2]
[354370875,1740455450709,-178.2075785,0.00035975,2]
[354370876,1740455450719,-100000.0,0.00036,42]
[354370877,1740455450729,-38012.75034434,0.00036,30]
[354370878,1740455450739,-250.0,0.00036,2]
[354370879,1740455450750,-1000.0,0.00036,60]
[354370880,1740455450759,-200000.0,0.00036,45]
[354370881,1740455450769,-250.0,0.00036,2]
[354370882,1740455450778,-250.0,0.00036,2]
[354370883,1740455450787,-250.0,0.00036,2]
[354370884,1740455450797,-250.0,0.00036,2]
[354370885,1740455450807,-500.0,0.00036164,60]
[354370886,1740455450815,-500.0,0.00036164,60]
[354370887,1740455450831,-500.0,0.00036164,60]
[354370888,1740455450848,-880.74,0.00036164,2]
[354370889,1740455450866,-879.94,0.00036164,2]
[354370890,1740455450885,-207.0,0.000363,30]
[354370891,1740455450900,-209.0,0.000363,2]
[354370892,1740455450918,-152.0,0.00036343,6]
[354370893,1740455450938,-18369.86274026,0.000364,14]
[354370894,1740455450957,-206.0,0.000364,2]
[354370895,1740455450978,-4443.58241883,0.00036549,120]
[354370896,1740455450996,-15300.12678373,0.0003655,120]
[354370897,1740455451015,-4443.58241883,0.00036551,120]
[354370898,1740455451030,-200.0,0.00036556,120]
[354370899,1740455451048,-10956.90410067,0.00036557,120]
[354370900,1740455451062,-2915.99990864,0.00036558,120]
[354370901,1740455451078,-19075.53206701,0.00036563,120]
[354370902,1740455451092,-200.0,0.00036563,120]
[354370903,1740455451107,-19126.32272835,0.00036567,120]
[354370904,1740455451122,-7246.52250437,0.00036568,120]
[354370905,1740455451139,-11578.58478565,0.00036569,120]
[354370906,1740455451155,-1363.29478592,0.00036572,120]
[354370907,1740455451170,-7246.52250437,0.00036573,120]
[354370908,1740455451186,-697.03973373,0.00036582,120]
[354370909,1740455451202,-1376.06212501,0.00036582,120]
[354370910,1740455451217,-15300.12678373,0.00036583,120]
[354370911,1740455451235,-200.0,0.00036584,120]
[354370912,1740455451250,-4443.58241883,0.00036592,120]
[354370913,1740455451265,-21885.4263838,0.00036593,120]
[354370914,1740455451284,-697.03973373,0.00036594,120]
[354370915,1740455451300,-30912.56240615,0.00036595,120]
[354370916,1740455451315,-30912.56240615,0.000366,120]
[354370917,1740455451330,-170.78,0.000366,31]
[354370918,1740455451345,-2493.27615963,0.00036606,120]
[354370919,1740455451360,-2000.0,0.00036616,3]
[354370920,1740455451375,-2005.8213,0.00036616,3]
[354370921,1740455451392,-10956.90410067,0.00036621,120]
[354370922,1740455451408,-19192.67114212,0.00036622,120]
[354370923,1740455451423,-444.04,0.00036622,2]
[354370924,1740455451438,-1363.29478592,0.00036627,120]
[354370925,1740455451453,-282.37761311,0.00036632,30]
[354370926,1740455451473,-21885.4263838,0.00036633,120]
[354370927,1740455451489,-200.0,0.00036634,120]
[354370928,1740455451505,-2915.99990864,0.00036637,120]
[354370929,1740455451521,-15300.12678373,0.00036638,120]
[354370930,1740455451535,-603.44517287,0.00036638,120]
[354370931,1740455451552,-200.0,0.00036642,120]
[354370932,1740455451568,-1191.30272728,0.00036644,120]
[354370933,1740455451583,-19126.32272835,0.00036647,120]
[354370934,1740455451601,-19126.32272835,0.00036647,120]
[354370935,1740455451617,-1376.06212501,0.00036651,120]
[354370936,1740455451641,-200.0,0.00036654,120]
[354370937,1740455451655,-1191.30272728,0.00036656,120]
[354370938,1740455451672,-500.0,0.00036657,120]
[354370939,1740455451687,-2493.27615963,0.00036663,120]
[354370940,1740455451702,-2915.99990864,0.00036663,120]
[354370941,1740455451718,-30912.56240615,0.00036665,120]
[354370942,1740455451732,-603.44517287,0.00036665,120]
[354370943,1740455451748,-1191.30272728,0.00036665,120]
[354370944,1740455451765,-1376.06212501,0.00036671,120]
[354370945,1740455451786,-11578.58478565,0.00036673,120]
[354370946,1740455451802,-603.44517287,0.00036675,120]
[354370947,1740455451818,-19126.32272835,0.00036677,120]
[354370948,1740455451834,-19192.67114212,0.00036684,120]
[354370949,1740455451849,-200.0,0.00036685,120]
[354370950,1740455451864,-200.0,0.00036685,120]
[354370951,1740455451880,-1376.06212501,0.00036687,120]
[354370952,1740455451895,-1363.29478592,0.00036687,120]
[354370953,1740455451911,-19192.67114212,0.00036687,120]
[354370954,1740455451926,-21885.4263838,0.00036687,120]
[354370955,1740455451942,-4443.58241883,0.00036689,120]
[354370956,1740455451958,-11578.58478565,0.0003669,120]
[354370957,1740455451973,-7246.52250437,0.00036694,120]
[354370958,1740455451988,-2493.27615963,0.00036695,120]
[354370959,1740455452004,-2493.27615963,0.00036698,120]
[354370960,1740455452020,-200.0,0.00036698,120]
[354370961,1740455452036,-15016.70984869,0.00036699,120]
[354370962,1740455452053,-15300.12678373,0.00036706,120]
[354370963,1740455452069,-30912.56240615,0.00036711,120]
[354370964,1740455452085,-500.0,0.00036712,60]
[354370965,1740455452100,-500.0,0.00036712,60]
[354370966,1740455452116,-150.0,0.00036712,2]
[354370967,1740455452130,-581.45685054,0.00036712,2]
[354370968,1740455452349,-11578.58478565,0.00036723,120]
[354370969,1740455452363,-7246.52250437,0.00036729,120]
[354370970,1740455452372,-19075.53206701,0.00036731,120]
[354370971,1740455452381,-200.0,0.00036735,120]
[354370972,1740455452391,-603.44517287,0.00036735,120]
[354370973,1740455452402,-1363.29478592,0.00036747,120]
[354370974,1740455452415,-21885.4263838,0.00036753,120]
[354370975,1740455452429,-19192.67114212,0.00036753,120]
[354370976,1740455452438,-200.0,0.00036759,120]
[354370977,1740455452447,-10956.90410067,0.00036759,120]
[354370978,1740455452456,-1191.30272728,0.00036762,120]
[354370979,1740455452466,-697.03973373,0.00036763,120]
[354370980,1740455452475,-697.03973373,0.00036764,120]
[354370981,1740455452485,-19075.53206701,0.00036766,120]
[354370982,1740455452494,-10956.90410067,0.00036769,120]
[354370983,1740455452503,-301.15346061,0.0003677,2]
[354370984,1740455452512,-550.99284975,0.0003677,2]
[354370985,1740455452522,-200.0,0.00036771,120]
[354370986,1740455452532,-200.0,0.00036783,120]
[354370987,1740455452541,-200.0,0.00036792,120]
[354370988,1740455452551,-19075.53206701,0.00036793,120]
[354370989,1740455452560,-200.0,0.00036796,120]
[354370990,1740455452569,-2915.99990864,0.000368,120]
[354370991,1740455452579,-157.67660963,0.000368,3]
[354370992,1740455452592,-150.0,0.0003682,15]
[354370993,1740455452602,-5595.94377081,0.00036858,120]
[354370994,1740455452611,-1500.0,0.00036868,5]
[354370995,1740455452620,-5100.0,0.0003688,27]
[354370996,1740455452630,-5100.0,0.0003688,28]
[354370997,1740455452639,-5100.0,0.0003688,29]
[354370998,1740455452648,-5100.0,0.0003688,30]
[354370999,1740455452658,-4940.0,0.0003688,18]
[354371000,1740455452668,-5100.0,0.0003688,19]
[354371001,1740455452679,-10088.0,0.000369,120]
[354371002,1740455452688,-300.0,0.0003697,2]
[354371003,1740455452697,-400.0,0.0003697,2]
[354371004,1740455452707,-1000.0,0.00036999,120]
[354371005,1740455452717,-100000.0,0.00037,44]
[354371006,1740455452726,-456417.08754355,0.00037,30]
[354371007,1740455452736,-250000.0,0.00037,50]
[354371008,1740455452745,-331.000001,0.00037,120]
[354371009,1740455452755,-203.9,0.00037,19]
[354371010,1740455452764,-250.0,0.00037,2]
[354371011,1740455452774,-1060.0,0.00037,5]
[354371012,1740455452784,-9032.0,0.00037,117]
[354371013,1740455452794,-1138.73045131,0.00037037,9]
[354371014,1740455452803,-150.0,0.00037133,120]
[354371015,1740455452813,-205.0,0.000372,30]
[354371016,1740455452822,-207.0,0.000372,30]
[354371017,1740455452831,-209.0,0.000372,2]
[354371018,1740455452840,-4117.87342255,0.0003722,2]
[354371019,1740455452849,-500.0,0.0003726,60]
[354371020,1740455452858,-500.0,0.0003726,60]
[354371021,1740455452867,-500.0,0.0003726,60]
[354371022,1740455452877,-300.35,0.0003726,2]
[354371023,1740455452887,-150.09,0.0003726,2]
[354371024,1740455452896,-206.0,0.000373,2]
[354371025,1740455452905,-151.0,0.00037479,120]
[354371026,1740455452915,-78000.0,0.0003749,120]
[354371027,1740455452925,-9786.39482003,0.000375,5]
[354371028,1740455452934,-500000.0,0.000375,50]
[354371029,1740455452943,-163.39501262,0.00037521,2]
[354371030,1740455452952,-323.85540635,0.00037622,2]
[354371031,1740455452962,-151.0,0.00037699,120]
[354371032,1740455452972,-328.12,0.00037799,120]
[354371033,1740455452981,-500.0,0.00037808,60]
[354371034,1740455452991,-500.0,0.00037808,60]
[354371035,1740455453000,-3623.27261866,0.00037967,2]
[354371036,1740455453010,-100000.0,0.00038,46]